bitfinex/quotes_ETHUSD_20250326
["timestamp","ask_amount","ask_price","bid_price","bid_amount"]
[1742970923885,0.13113838,2064.9,2064.6,18.57127229]
[1742970925881,0.13113838,2064.9,2064.8,1.13532117]
[1742970926060,0.13113838,2064.9,2064.8,1.93422117]
[1742970926265,4.84201,2065.3,2064.8,6.77730117]
[1742970926481,4.84201,2065.3,2064.9,1.13532117]
[1742970926683,5.66699,2065.4,2065.0,1.13532117]
[1742970926883,4.84189,2065.4,2065.0,1.13532117]
[1742970927085,4.84189,2065.4,2065.1,15.2989]
[1742970927401,4.84149,2065.5,2065.1,16.43422117]
[1742970927685,5.66636,2065.6,2065.3,1.13532117]
[1742970927990,5.66636,2065.6,2065.2,2.12768112]
[1742970927991,5.66636,2065.6,2065.4,1.13532117]
[1742970928186,5.66592,2065.8,2065.5,1.13532117]
[1742970928484,5.66587,2065.8,2065.5,1.13532117]
[1742970928688,5.66587,2065.8,2065.4,1.93422117]
[1742970928987,10.50682,2065.8,2065.4,3.3087984]
[1742970929194,5.66587,2065.8,2065.4,3.3087984]
[1742970930061,0.12501253,2065.7,2065.4,3.3087984]
[1742970930896,5.66587,2065.8,2065.4,3.3087984]
[1742970931099,0.12478217,2065.6,2065.4,3.3087984]
[1742970931327,0.12478217,2065.6,2065.5,0.81506384]
[1742970931615,0.35330984,2065.6,2065.5,1.95038501]
[1742970931781,9.68125,2065.9,2065.5,1.95038501]
[1742970932098,0.35504617,2065.8,2065.5,6.79164501]
[1742970932267,0.35504617,2065.8,2065.7,1.13532117]
[1742970932474,0.35504617,2065.8,2065.7,3.26448667]
[1742970932703,4.84007,2066.1,2065.7,3.26448667]
[1742970932889,0.32662602,2065.8,2065.7,4.06338667]
[1742970933091,4.84007,2066.1,2065.7,4.06338667]
[1742970933709,0.32739555,2066.0,2065.8,14.5]
[1742970934008,0.32739555,2066.0,2065.8,17.97576484]
[1742970934372,4.8396,2066.3,2065.9,1.13532117]
[1742970934566,5.66456,2066.4,2066.1,1.13532117]
[1742970934803,0.8251,2066.6,2066.3,1.13532117]
[1742970935002,4.83912,2066.5,2066.3,14.5]
[1742970935305,4.83859,2066.8,2066.3,14.5]
[1742970935605,4.8389,2066.6,2066.3,14.5]
[1742970936376,4.83885,2066.7,2066.3,14.5]
[1742970937877,9.67759,2066.7,2066.3,14.5]
[1742970938108,4.83889,2066.6,2066.3,14.5]
[1742970939009,4.83874,2066.7,2066.3,14.5]
[1742970939309,4.83874,2066.7,2066.3,3.51384847]
[1742970939808,9.67751,2066.7,2066.3,18.01384847]
[1742970940110,9.67751,2066.7,2066.3,3.51384847]
[1742970941705,4.8389,2066.6,2066.3,3.51384847]
[1742970941906,4.8389,2066.6,2066.1,8.05316188]
[1742970941907,4.83934,2066.4,2066.1,8.05316188]
[1742970942079,4.83934,2066.4,2066.1,12.61616188]
[1742970942279,4.8393,2066.5,2066.1,12.61616188]
[1742970942480,9.67855,2066.5,2066.1,27.11616188]
[1742970942707,9.67855,2066.5,2066.1,27.11315195]
[1742970942907,4.83925,2066.5,2066.2,3.2750402]
[1742970943113,9.67847,2066.5,2066.2,3.2750402]
[1742970943297,4.83945,2066.4,2066.1,22.55015195]
[1742970943503,4.83961,2066.3,2066.1,22.55015195]
[1742970943903,9.67898,2066.4,2066.1,22.55015195]
[1742970944598,4.83958,2066.3,2066.1,8.05015195]
[1742970945524,4.8398,2066.2,2066.1,8.05015195]
[1742970945726,5.17113141,2066.2,2066.1,8.05015195]
[1742970946315,0.33133141,2066.2,2066.1,8.05015195]
[1742970946529,4.83951,2066.4,2066.1,8.05015195]
[1742970946812,0.33098047,2066.2,2066.1,8.05015195]
[1742970947318,4.83957,2066.3,2066.1,22.55015195]
[1742970947505,0.33098047,2066.2,2066.1,22.55015195]
[1742970947905,4.83957,2066.3,2066.1,22.55015195]
[1742970948212,0.33098047,2066.2,2066.1,22.55015195]
[1742970948606,4.83957,2066.3,2066.1,22.55015195]
[1742970948799,0.33098047,2066.2,2066.1,22.55015195]
[1742970949520,4.8398,2066.2,2066.1,22.55015195]
[1742970949713,5.17078047,2066.2,2066.1,22.55015195]
[1742970951624,5.17078047,2066.2,2066.1,8.05015195]
[1742970953726,4.84003,2066.1,2066.0,14.5]
[1742970954114,4.84048,2066.0,2065.6,3.7972]
[1742970954502,5.17029879,2065.9,2065.6,3.7972]
[1742970954702,5.17029879,2065.9,2065.7,14.5]
[1742970955340,0.32975879,2065.9,2065.7,14.5]
[1742970956812,5.17027879,2065.9,2065.7,14.5]
[1742970957317,0.32975879,2065.9,2065.7,14.5]
[1742970958210,5.17030879,2065.9,2065.7,14.5]
[1742970958539,5.17031879,2065.9,2065.7,14.5]
[1742970960609,10.01094879,2065.9,2065.7,14.5]
[1742970960810,5.17031879,2065.9,2065.7,14.5]
[1742970962049,0.32975879,2065.9,2065.7,14.5]
[1742970964533,5.17026879,2065.9,2065.7,14.5]
[1742970964843,4.84073,2065.8,2065.7,14.5]
[1742970965153,5.16773074,2065.8,2065.7,14.5]
[1742970965642,4.8412,2065.6,2065.5,5.72689749]
[1742970966346,0.32642,2065.6,2065.5,14.5]
[1742970966557,4.84102,2065.7,2065.5,14.5]
[1742970966853,0.32590687,2065.6,2065.5,14.5]
[1742970967216,4.84102,2065.7,2065.5,14.5]
[1742970967410,9.6822,2065.7,2065.5,14.5]
[1742970967607,5.16710687,2065.6,2065.5,14.5]
[1742970969174,5.16710687,2065.6,2065.2,33.55626]
[1742970969351,5.16710687,2065.6,2065.3,0.98900672]
[1742970969518,5.16710687,2065.6,2065.2,33.55626]
[1742970969721,5.16710687,2065.6,2065.3,14.5]
[1742970970349,10.00851687,2065.6,2065.3,14.5]
[1742970972353,4.84153,2065.5,2065.3,14.5]
[1742970972854,0.32283353,2065.4,2065.3,14.5]
[1742970975749,0.32283353,2065.4,2065.3,21.36464871]
[1742970975953,0.32283353,2065.4,2065.3,16.52273871]
[1742970976122,4.84125,2065.6,2065.3,16.52273871]
[1742970976322,0.32283353,2065.4,2065.3,14.5]
[1742970976545,4.84125,2065.6,2065.3,14.5]
[1742970976718,0.32283353,2065.4,2065.3,14.5]
[1742970976919,4.84125,2065.6,2065.3,14.5]
[1742970977123,0.32283353,2065.4,2065.3,14.5]
[1742970977323,9.68268,2065.6,2065.3,14.5]
[1742970977552,0.32283353,2065.4,2065.3,14.5]
[1742970977726,9.68268,2065.6,2065.3,14.5]
[1742970977927,0.32283353,2065.4,2065.3,14.5]
[1742970978129,4.84125,2065.6,2065.3,14.5]
[1742970978432,9.68264,2065.6,2065.3,14.5]
[1742970978633,0.32317813,2065.5,2065.3,14.5]
[1742970981163,5.16466813,2065.5,2065.3,14.5]
[1742970982066,10.00631813,2065.5,2065.3,14.5]
[1742970982272,5.16466813,2065.5,2065.3,14.5]
[1742970982871,5.16466813,2065.5,2065.3,15.63381753]
[1742970983571,5.16466813,2065.5,2065.4,1.13381753]
[1742970984168,5.16466813,2065.5,2065.4,15.63381753]
[1742970987883,5.16466813,2065.5,2065.4,14.5]
[1742970989880,4.8427,2065.0,2064.8,1.91731753]
[1742970990179,4.8427,2065.0,2064.9,1.13381753]
[1742970990488,5.16296084,2065.0,2064.9,14.5]
[1742970990786,0.32026084,2065.0,2064.9,15.63381753]
[1742970990966,0.32026084,2065.0,2064.9,16.41731753]
[1742970991486,0.32026084,2065.0,2064.9,15.63381753]
[1742970991779,5.16287084,2065.0,2064.9,14.5]
[1742970995062,4.84261,2065.0,2064.9,14.5]
[1742970995266,5.16287084,2065.0,2064.9,14.5]
[1742971016804,0.32026084,2065.0,2064.9,14.5]
[1742971019138,5.16287084,2065.0,2064.9,14.5]
[1742971021528,5.94407084,2065.0,2064.9,14.5]
[1742971022521,5.16287084,2065.0,2064.9,14.5]
[1742971036612,0.32026084,2065.0,2064.9,14.5]
[1742971051149,5.16287084,2065.0,2064.9,14.5]
[1742971059958,0.32026084,2065.0,2064.9,14.5]
[1742971060547,4.84248,2065.1,2064.9,14.5]
[1742971060750,0.31747763,2065.0,2064.9,14.5]
[1742971063769,0.31747763,2065.0,2064.7,1.96091753]
[1742971064280,0.31747763,2065.0,2064.8,14.5]
[1742971074881,5.16013763,2065.0,2064.8,14.5]
[1742971078120,6.23851939,2065.0,2064.8,14.5]
[1742971078278,4.84348,2064.7,2064.3,1.91611753]
[1742971078482,4.84348,2064.7,2064.4,1.13381753]
[1742971078483,9.68701,2064.7,2064.4,1.13381753]
[1742971078682,0.31626058,2064.6,2064.5,14.5]
[1742971080685,0.31626058,2064.6,2064.5,15.63381753]
[1742971081303,4.84348,2064.7,2064.5,15.63381753]
[1742971081510,0.31553066,2064.6,2064.5,15.63381753]
[1742971082015,0.31553066,2064.6,2064.5,21.25989753]
[1742971082185,0.31553066,2064.6,2064.5,23.98367104]
[1742971082519,7.84275,2065.0,2064.5,23.98361104]
[1742971082815,0.31640293,2064.9,2064.6,1.13381753]
[1742971084503,0.31640293,2064.9,2064.7,1.13381753]
[1742971084723,0.31640293,2064.9,2064.6,1.13381753]
[1742971085187,5.15926293,2064.9,2064.6,1.13381753]
[1742971088321,5.15926293,2064.9,2064.7,14.5]
[1742971090616,10.00232293,2064.9,2064.7,14.5]
[1742971090930,5.15926293,2064.9,2064.7,14.5]
[1742971095246,5.15926293,2064.9,2064.7,15.259]
[1742971098238,0.31640293,2064.9,2064.7,15.259]
[1742971099038,5.15933293,2064.9,2064.7,15.259]
[1742971099838,10.00237293,2064.9,2064.7,15.259]
[1742971100240,5.15933293,2064.9,2064.7,15.259]
[1742971102143,10.00237293,2064.9,2064.7,15.259]
[1742971102327,5.15933293,2064.9,2064.7,15.259]
[1742971103845,10.00237293,2064.9,2064.7,15.259]
[1742971104150,5.15933293,2064.9,2064.7,15.259]
[1742971106421,5.15933293,2064.9,2064.7,14.5]
[1742971106623,6.65182998,2064.9,2064.7,14.5]
[1742971109359,5.15933293,2064.9,2064.7,14.5]
[1742971110449,0.31640293,2064.9,2064.7,14.5]
[1742971110841,0.31640293,2064.9,2064.8,1.13381753]
[1742971111149,7.84224,2065.2,2064.8,1.13381753]
[1742971111653,0.31586541,2065.1,2064.9,14.5]
[1742971113064,5.15826541,2065.1,2064.9,14.5]
[1742971115475,0.31586541,2065.1,2064.9,14.5]
[1742971117291,5.15825541,2065.1,2064.9,14.5]
[1742971117692,0.31586541,2065.1,2064.9,14.5]
[1742971120769,5.15826541,2065.1,2064.9,14.5]
[1742971121279,0.31586541,2065.1,2064.9,14.5]
[1742971130911,0.31586541,2065.1,2065.0,5.97642753]
[1742971131213,0.31586541,2065.1,2065.0,6.80852753]
[1742971131520,3.0,2065.6,2065.1,4.84232]
[1742971131802,11.59786753,2065.7,2065.2,1.13381753]
[1742971131961,3.0,2065.6,2065.2,1.13381753]
[1742971132162,3.29118688,2065.6,2065.3,14.5]
[1742971132391,8.13240688,2065.6,2065.3,14.5]
[1742971133305,3.29118688,2065.6,2065.3,16.46591753]
[1742971133607,3.29118688,2065.6,2065.3,17.46292375]
[1742971135499,0.29118688,2065.6,2065.3,18.59674128]
[1742971136195,0.29118688,2065.6,2065.5,1.13381753]
[1742971136373,0.29118688,2065.6,2065.5,6.78415753]
[1742971136571,4.96181753,2066.0,2065.5,6.78415753]
[1742971136782,0.29232187,2065.6,2065.5,1.94271753]
[1742971136978,9.80218753,2066.0,2065.5,1.94271753]
[1742971137167,0.29232187,2065.6,2065.5,1.94271753]
[1742971137362,9.80218753,2066.0,2065.5,16.44271753]
[1742971137879,0.29319343,2065.9,2065.5,16.44271753]
[1742971138084,0.29319343,2065.9,2065.5,17.92152475]
[1742971138591,4.84104,2065.7,2065.5,14.5]
[1742971138892,6.80276753,2065.8,2065.5,14.5]
[1742971139090,0.29502365,2065.6,2065.5,14.5]
[1742971139266,5.66895,2065.8,2065.5,14.5]
[1742971139468,0.2955715,2065.6,2065.5,14.5]
[1742971139787,5.66895,2065.8,2065.5,14.5]
[1742971139987,0.29605079,2065.6,2065.5,14.5]
[1742971140891,5.66895,2065.8,2065.5,14.5]
[1742971141072,0.29605079,2065.6,2065.5,14.5]
[1742971141273,5.66895,2065.8,2065.5,14.5]
[1742971141474,0.29605079,2065.6,2065.5,14.5]
[1742971141698,5.66895,2065.8,2065.3,1.94271753]
[1742971141992,0.29605079,2065.6,2065.3,8.40257728]
[1742971142290,0.29576027,2065.5,2065.4,14.5]
[1742971142494,5.66895,2065.8,2065.4,14.5]
[1742971142666,0.29576027,2065.5,2065.4,14.5]
[1742971142866,5.66895,2065.8,2065.4,14.5]
[1742971143066,0.29576027,2065.5,2065.4,14.5]
[1742971143295,5.66895,2065.8,2065.4,17.24555773]
[1742971143494,0.29576027,2065.5,2065.4,17.24555773]
[1742971143658,5.66895,2065.8,2065.4,17.24555773]
[1742971143863,0.29576027,2065.5,2065.4,17.24555773]
[1742971144094,5.66895,2065.8,2065.4,17.24555773]
[1742971144264,6.80273753,2065.8,2065.5,2.5648135]
[1742971144463,6.80273753,2065.8,2065.3,2.42686975]
[1742971144791,6.80315753,2065.6,2065.1,0.8089]
[1742971144969,6.80315753,2065.6,2065.4,14.5]
[1742971145563,5.66934,2065.6,2065.4,14.5]
[1742971147365,0.2956918,2065.5,2065.4,14.5]
[1742971147897,0.2956918,2065.5,2065.1,6.78500753]
[1742971148063,0.2956918,2065.5,2065.2,1.61804775]
[1742971148466,0.2956918,2065.5,2065.3,14.5]
[1742971148867,5.1371518,2065.5,2065.3,14.5]
[1742971150010,0.2956918,2065.5,2065.3,14.5]
[1742971150212,5.1371618,2065.5,2065.3,14.5]
[1742971150500,0.2956918,2065.5,2065.3,14.5]
[1742971150666,6.27097933,2065.5,2065.3,14.5]
[1742971150999,4.84167,2065.4,2065.3,14.5]
[1742971151197,7.46500326,2065.5,2065.3,14.5]
[1742971151401,0.29477991,2065.4,2065.3,14.5]
[1742971153502,5.13644991,2065.4,2065.3,14.5]
[1742971153796,5.89484991,2065.4,2065.3,14.5]
[1742971155676,7.02866744,2065.4,2065.3,14.5]
[1742971156381,4.84207,2065.3,2065.1,0.97819235]
[1742971156589,5.97588753,2065.3,2064.8,4.84296]
[1742971156792,5.97597753,2065.2,2064.7,10.2265]
[1742971156997,7.0273461,2065.2,2064.8,14.5]
[1742971157192,5.89352857,2065.2,2064.8,19.2911077]
[1742971157515,5.60101,2065.0,2064.6,36.03627051]
[1742971157699,0.7584,2065.0,2064.6,40.87980051]
[1742971157905,0.29144239,2064.9,2064.6,40.87980051]
[1742971158306,0.29144239,2064.9,2064.6,36.03627051]
[1742971158906,1.13381753,2064.8,2064.7,14.5]
[1742971159085,7.43795152,2064.8,2064.7,14.5]
[1742971159412,4.84331,2064.7,2064.2,5.67548]
[1742971159611,5.97712753,2064.7,2064.2,5.67548]
[1742971159816,0.28810686,2064.6,2064.3,14.5]
[1742971160007,6.26557439,2064.6,2064.3,14.5]
[1742971160204,1.42192439,2064.6,2064.3,16.517588]
[1742971160407,0.28810686,2064.6,2064.3,16.517588]
[1742971163027,5.13179686,2064.6,2064.3,16.517588]
[1742971165512,5.13179686,2064.6,2064.3,14.5]
[1742971170197,9.97557686,2064.6,2064.3,14.5]
[1742971170911,5.13179686,2064.6,2064.3,14.5]
[1742971171412,4.84379,2064.5,2064.3,14.5]
[1742971171914,0.28800278,2064.4,2064.3,14.5]
[1742971173328,4.84369,2064.6,2064.3,14.5]
[1742971173519,0.28820831,2064.4,2064.3,14.5]
[1742971173700,4.84369,2064.6,2064.3,14.5]
[1742971173901,0.28849913,2064.5,2064.3,14.5]
[1742971176426,8.63155,2064.3,2064.2,0.97396769]
[1742971176628,4.84506,2064.0,2063.6,0.8302]
[1742971176828,4.84506,2064.0,2063.6,5.67609]
[1742971177028,0.28488649,2063.9,2063.7,14.5]
[1742971177498,5.13010649,2063.9,2063.7,14.5]
[1742971180035,0.28488649,2063.9,2063.8,4.84543]
[1742971180239,0.28488649,2063.9,2063.7,4.84549]
[1742971180421,4.84479,2064.1,2063.6,5.67604]
[1742971180619,0.28312227,2063.8,2063.7,14.5]
[1742971180806,4.84507,2064.0,2063.7,14.5]
[1742971181007,0.2831908,2063.8,2063.7,15.47791445]
[1742971181203,4.84507,2064.0,2063.7,15.47791445]
[1742971181436,0.2831908,2063.8,2063.7,15.47791445]
[1742971181738,4.84507,2064.0,2063.7,15.47791445]
[1742971182109,0.28348179,2063.9,2063.7,15.47791445]
[1742971185945,10.82543212,2064.1,2063.7,15.47791445]
[1742971186248,0.28144519,2063.8,2063.7,15.47791445]
[1742971186408,10.82543212,2064.1,2063.7,15.47791445]
[1742971186613,0.28137666,2063.8,2063.7,15.47791445]
[1742971186814,4.84499,2064.0,2063.7,15.47791445]
[1742971187034,0.28137666,2063.8,2063.7,15.47791445]
[1742971187236,0.28137666,2063.8,2063.7,14.5]
[1742971188114,6.77192212,2064.0,2063.7,14.5]
[1742971188335,0.28166765,2063.9,2063.7,14.5]
[1742971189741,0.28166765,2063.9,2063.7,19.34562]
[1742971189942,0.28166765,2063.9,2063.7,20.16032]
[1742971190115,4.84473,2064.1,2063.7,22.87246614]
[1742971190317,0.28185038,2064.0,2063.7,20.16032]
[1742971190944,0.28185038,2064.0,2063.8,4.84534]
[1742971191446,11.60160212,2064.2,2063.8,4.84534]
[1742971191644,0.28155942,2063.9,2063.7,5.6603]
[1742971191856,11.60160212,2064.2,2063.7,5.6603]
[1742971192053,0.2813496,2063.8,2063.7,5.6603]
[1742971192257,11.60160212,2064.2,2063.7,5.6603]
[1742971192431,0.2813496,2063.8,2063.7,5.6603]
[1742971192756,0.2813496,2063.8,2063.7,20.1603]
[1742971192959,11.60160212,2064.2,2063.7,20.1603]
[1742971193158,0.2813496,2063.8,2063.7,20.1603]
[1742971193359,4.84473,2064.1,2063.7,20.1603]
[1742971193546,0.28125401,2063.8,2063.7,20.1603]
[1742971193841,4.84473,2064.1,2063.7,20.1603]
[1742971194045,0.28115842,2063.8,2063.7,20.1603]
[1742971194243,4.84473,2064.1,2063.7,20.1603]
[1742971194448,0.28122695,2063.8,2063.7,20.1603]
[1742971194619,4.84473,2064.1,2063.7,20.1603]
[1742971194819,0.28122695,2063.8,2063.7,20.1603]
[1742971195045,4.84473,2064.1,2063.7,20.1603]
[1742971195246,0.28122695,2063.8,2063.7,20.1603]
[1742971195449,4.84473,2064.1,2063.7,20.1603]
[1742971195652,0.28122695,2063.8,2063.7,20.1603]
[1742971195830,4.84473,2064.1,2063.7,20.1603]
[1742971196034,0.28122695,2063.8,2063.7,24.00817626]
[1742971196349,5.62122,2064.2,2063.8,4.84542]
[1742971196526,0.7767,2064.2,2063.9,4.84514]
[1742971196852,3.0,2064.3,2064.0,5.6329]
[1742971197041,3.0,2064.3,2064.0,20.1329]
[1742971197216,4.84375,2064.6,2064.1,4.8447]
[1742971197421,0.28254045,2064.2,2064.1,4.8447]
[1742971197823,0.28254045,2064.2,2064.1,19.3447]
[1742971198131,0.28254045,2064.2,2064.1,17.11133321]
[1742971198333,8.97978212,2064.4,2064.1,14.5]
[1742971198649,0.28304361,2064.2,2064.1,14.5]
[1742971198827,7.84405,2064.4,2064.1,14.5]
[1742971199032,0.28290658,2064.2,2064.1,14.5]
[1742971199239,7.84405,2064.4,2064.1,14.5]
[1742971199427,0.28290658,2064.2,2064.1,14.5]
[1742971199630,7.84405,2064.4,2064.1,14.5]
[1742971199829,0.28304361,2064.2,2064.1,14.5]
[1742971200057,7.84405,2064.4,2064.1,14.5]
[1742971200261,0.28304361,2064.2,2064.1,14.5]
[1742971200762,7.84405,2064.4,2064.1,14.5]
[1742971200946,0.28304361,2064.2,2064.1,14.5]
[1742971201152,7.84385,2064.5,2064.1,21.842525]
[1742971201352,0.28304361,2064.2,2064.1,21.842525]
[1742971201557,7.84385,2064.5,2064.1,21.842525]
[1742971201758,4.8436,2064.6,2064.3,0.788]
[1742971201958,7.8436,2064.6,2064.3,0.788]
[1742971202459,4.84378,2064.5,2064.4,14.5]
[1742971202963,4.84378,2064.5,2063.9,10.47807]
[1742971202964,4.84418,2064.4,2063.9,10.47807]
[1742971203165,4.84418,2064.4,2064.0,4.84493]
[1742971203342,9.6884,2064.4,2064.1,14.5]
[1742971203747,4.84426,2064.3,2064.1,14.5]
[1742971204864,4.84418,2064.4,2064.1,14.5]
[1742971205229,4.84418,2064.4,2064.1,15.48742553]
[1742971210170,4.84426,2064.3,2064.1,15.48742553]
[1742971211955,4.84408,2064.4,2064.1,15.48742553]
[1742971212661,3.0,2064.6,2064.1,20.39279513]
[1742971212894,12.68729,2064.6,2064.2,4.8443]
[1742971213178,7.84359,2064.6,2064.2,9.68858]
[1742971213477,7.84359,2064.6,2064.3,0.7659]
[1742971213670,12.68725,2064.6,2064.3,0.7659]
[1742971213863,8.62979,2064.6,2064.1,25.23746513]
[1742971214058,4.84403,2064.4,2064.1,16.25332553]
[1742971214647,9.68774,2064.5,2064.1,21.09802553]
[1742971215575,4.84404,2064.4,2064.1,16.25332553]
[1742971215965,9.6878,2064.5,2064.1,21.09801553]
[1742971216681,4.84382,2064.5,2064.1,21.09801553]
[1742971217178,9.68779,2064.5,2064.1,21.09801553]
[1742971218077,4.84382,2064.5,2064.1,21.09801553]
[1742971218459,4.84382,2064.5,2064.1,25.92251144]
[1742971218872,4.84382,2064.5,2064.2,1.1350362]
[1742971219989,3.7862,2064.6,2064.3,4.84425]
[1742971220152,0.7862,2064.8,2064.4,1.1350362]
[1742971220483,3.0,2064.7,2064.5,1.1350362]
[1742971220882,3.0,2064.8,2064.6,14.5]
[1742971221063,3.0,2064.9,2064.6,19.34344]
[1742971221466,4.84262,2065.0,2064.6,19.34344]
[1742971221765,3.0,2064.9,2064.6,19.34344]
[1742971223158,3.0,2065.0,2064.6,19.34344]
[1742971223359,3.0,2065.0,2064.6,22.15722288]
[1742971223884,0.7862,2065.2,2064.7,2.02583018]
[1742971224103,4.84202,2065.3,2064.8,5.60881]
[1742971224392,4.84202,2065.3,2064.9,4.8428]
[1742971224556,3.0,2065.2,2064.9,19.3428]
[1742971224752,3.0,2065.3,2064.9,19.3428]
[1742971224984,4.84144,2065.5,2065.0,5.60328]
[1742971225181,4.84171,2065.4,2065.0,5.60328]
[1742971225406,4.84149,2065.5,2065.0,5.60328]
[1742971225681,4.84149,2065.5,2065.1,19.34237]
[1742971225682,3.0,2065.4,2065.1,19.34237]
[1742971227204,7.84173,2065.4,2065.1,14.5]
[1742971228668,3.0,2065.4,2065.1,14.5]
[1742971230671,7.8417,2065.4,2065.1,14.5]
[1742971231728,7.8417,2065.4,2065.0,6.57744384]
[1742971232315,7.8417,2065.4,2065.0,21.07744384]
[1742971233998,3.0,2065.4,2065.0,29.47577461]
[1742971234199,4.84149,2065.5,2065.1,5.60318]
[1742971235620,4.84149,2065.5,2065.2,14.5]
[1742971237022,3.0,2065.6,2065.2,19.34195]
[1742971237196,3.0,2065.6,2065.3,5.60271]
[1742971237518,3.0,2065.6,2065.3,8.29975902]
[1742971237721,3.0,2065.6,2065.3,5.60271]
[1742971237940,3.0,2065.6,2065.4,14.5]
[1742971239516,0.41859692,2065.5,2065.4,14.5]
[1742971240543,0.41859692,2065.5,2065.4,19.34167]
[1742971240747,3.0,2065.7,2065.4,19.34167]
[1742971240965,0.41888124,2065.6,2065.4,16.994436]
[1742971244836,0.41888124,2065.6,2065.4,21.836076]
[1742971245204,12.68113,2065.9,2065.4,26.677526]
[1742971245402,0.42008292,2065.5,2065.4,21.835886]
[1742971245609,7.84055,2065.9,2065.4,21.835886]
[1742971245809,12.68125,2065.9,2065.5,2.48272255]
[1742971246422,12.68125,2065.9,2065.6,14.5]
[1742971246606,4.84074,2065.8,2065.6,14.5]
[1742971247006,4.84097,2065.7,2065.6,14.5]
[1742971247238,5.26162154,2065.7,2065.6,14.5]
[1742971248143,0.42065154,2065.7,2065.6,14.5]
[1742971248443,4.84088,2065.8,2065.6,14.5]
[1742971248633,0.42212459,2065.7,2065.6,14.5]
[1742971249010,4.84088,2065.8,2065.6,14.5]
[1742971249215,0.42212459,2065.7,2065.6,14.5]
[1742971249640,4.84088,2065.8,2065.6,16.53072829]
[1742971249827,0.42245954,2065.7,2065.6,16.53072829]
[1742971250030,0.42245954,2065.7,2065.6,2.03072829]
[1742971250209,4.84088,2065.8,2065.4,5.80728288]
[1742971250408,0.42245954,2065.7,2065.5,14.5]
[1742971250811,4.84088,2065.8,2065.5,14.5]
[1742971251043,0.42217533,2065.6,2065.5,14.5]
[1742971251220,4.84088,2065.8,2065.5,14.5]
[1742971251420,4.84088,2065.8,2065.5,17.54591229]
[1742971251620,0.42152314,2065.7,2065.5,17.54591229]
[1742971252030,4.84088,2065.8,2065.5,17.54591229]
[1742971252232,0.42123889,2065.6,2065.5,17.54591229]
[1742971252535,4.84088,2065.8,2065.5,17.54591229]
[1742971252709,0.42152314,2065.7,2065.5,17.54591229]
[1742971252915,7.84056,2065.9,2065.6,1.85115352]
[1742971253113,0.42180737,2065.8,2065.5,14.5]
[1742971253734,5.26254737,2065.8,2065.5,14.5]
[1742971254963,6.39637233,2065.8,2065.5,14.5]
[1742971257431,4.84113,2065.7,2065.5,14.5]
[1742971257816,0.42111028,2065.6,2065.5,14.5]
[1742971259950,4.84075,2065.8,2065.5,14.5]
[1742971260149,0.42139453,2065.7,2065.5,14.5]
[1742971260316,4.84075,2065.8,2065.5,14.5]
[1742971260647,0.42139453,2065.7,2065.5,14.5]
[1742971261029,4.84078,2065.8,2065.5,14.5]
[1742971261549,0.42139453,2065.7,2065.5,14.5]
[1742971261751,4.84078,2065.8,2065.5,14.5]
[1742971261967,0.42139453,2065.7,2065.5,14.5]
[1742971262134,4.84097,2065.7,2065.5,14.5]
[1742971262329,0.42111028,2065.6,2065.5,14.5]
[1742971262535,7.84056,2065.9,2065.5,17.99812078]
[1742971262747,0.42167876,2065.8,2065.5,15.3231]
[1742971262971,5.26241876,2065.8,2065.5,15.3231]
[1742971263727,0.42167876,2065.8,2065.5,15.3231]
[1742971264353,5.26241876,2065.8,2065.5,15.3231]
[1742971264927,0.42167876,2065.8,2065.5,15.3231]
[1742971265327,0.42167876,2065.8,2065.5,20.16446]
[1742971265670,0.42167876,2065.8,2065.5,15.3231]
[1742971266158,0.42167876,2065.8,2065.5,18.48851078]
[1742971266359,0.42167876,2065.8,2065.7,6.79789496]
[1742971266666,0.7761,2066.3,2065.9,0.8231]
[1742971266667,4.83963,2066.3,2065.9,0.8231]
[1742971266835,3.0,2066.3,2065.9,6.79736496]
[1742971267032,0.4234379,2066.2,2066.0,14.5]
[1742971267454,3.0,2066.2,2066.0,14.5]
[1742971267648,0.42442554,2066.1,2066.0,14.5]
[1742971267855,0.42442554,2066.1,2066.0,18.21828646]
[1742971268041,4.83897,2066.6,2066.2,0.8231]
[1742971268242,4.83887,2066.6,2066.2,1.95692496]
[1742971268458,0.42550864,2066.5,2066.2,0.8231]
[1742971268666,3.42550864,2066.5,2066.3,14.5]
[1742971268832,4.83912,2066.5,2066.3,14.5]
[1742971269032,0.42509072,2066.4,2066.3,14.5]
[1742971270776,7.33893279,2066.4,2066.3,14.5]
[1742971270956,7.33893279,2066.4,2065.8,10.18483]
[1742971270957,4.83964,2066.3,2065.8,10.18483]
[1742971271157,0.42452224,2066.2,2065.8,10.18483]
[1742971271469,4.83964,2066.3,2065.8,10.18483]
[1742971271641,0.42423796,2066.1,2065.8,13.33970681]
[1742971271844,0.42452224,2066.2,2065.8,13.33970681]
[1742971272044,0.42395365,2066.0,2065.8,13.33970681]
[1742971272244,4.83964,2066.3,2065.9,14.5]
[1742971272455,9.67943,2066.3,2065.9,14.5]
[1742971272651,4.83981,2066.2,2065.9,14.5]
[1742971273174,4.84019,2066.1,2065.9,14.5]
[1742971273376,4.84003,2066.1,2065.9,14.5]
[1742971274760,0.42452712,2066.0,2065.9,14.5]
[1742971275677,0.42452712,2066.0,2065.9,20.1386]
[1742971275878,8.60354,2066.4,2065.9,22.072696]
[1742971276082,0.42452712,2066.0,2065.9,20.1386]
[1742971276284,8.60354,2066.4,2065.9,20.1386]
[1742971276577,7.83915,2066.5,2066.0,4.84017]
[1742971276784,0.42604227,2066.4,2066.0,4.84017]
[1742971276985,0.42604227,2066.4,2066.2,5.63786]
[1742971277188,3.0,2066.6,2066.2,6.88796281]
[1742971277355,0.42632647,2066.5,2066.2,0.7981]